bitfinex-derivatives/quotes_BTCF0:USTF0_20241003
["timestamp","ask_amount","ask_price","bid_price","bid_amount"]
[1727966078472,0.30223361,60455.0,60440.0,0.883539]
[1727966078473,0.13733619,60455.0,60448.0,0.082728]
[1727966078670,0.14834519,60457.0,60456.0,0.082717]
[1727966078867,0.19913391,60457.0,60456.0,0.082717]
[1727966079072,0.01526412,60463.0,60458.0,0.082714]
[1727966079073,0.14834519,60459.0,60458.0,0.082714]
[1727966079276,0.14834519,60459.0,60455.0,0.3608]
[1727966079277,0.14834519,60462.0,60461.0,0.08271]
[1727966079482,0.19913434,60462.0,60458.0,0.082713]
[1727966079675,0.19913434,60462.0,60453.0,0.082719]
[1727966079676,0.082716,60457.0,60453.0,0.082719]
[1727966079879,0.082716,60457.0,60456.0,0.001]
[1727966080080,0.12323636,60457.0,60456.0,0.001]
[1727966080583,0.21455416,60457.0,60456.0,0.001]
[1727966080879,0.08104454,60457.0,60456.0,0.083717]
[1727966081079,0.082711,60460.0,60456.0,0.082716]
[1727966081283,0.082711,60460.0,60456.0,0.001]
[1727966081474,0.09797112,60463.0,60459.0,0.082712]
[1727966081673,0.082707,60463.0,60456.0,0.001]
[1727966081869,0.082707,60463.0,60460.0,0.082711]
[1727966082074,0.082707,60463.0,60456.0,0.001]
[1727966082075,0.37546542,60465.0,60464.0,0.082706]
[1727966082276,0.3608,60465.0,60464.0,0.082706]
[1727966082889,0.3608,60473.0,60461.0,0.44]
[1727966083074,0.3608,60473.0,60472.0,0.522695]
[1727966083390,0.16573742,60485.0,60472.0,0.44]
[1727966083391,0.082686,60479.0,60472.0,0.44]
[1727966083687,0.082686,60479.0,60475.0,0.082691]
[1727966083887,0.01512707,60481.0,60472.0,0.44]
[1727966084079,0.04051666,60480.0,60472.0,0.44]
[1727966084275,0.082683,60481.0,60472.0,0.44]
[1727966084488,0.082684,60480.0,60472.0,0.442]
[1727966084785,0.03196016,60479.0,60472.0,0.442]
[1727966084979,0.37602833,60483.0,60473.0,0.44]
[1727966084980,0.03196016,60478.0,60473.0,0.44]
[1727966085284,0.082684,60481.0,60477.0,0.082688]
[1727966085483,0.03196023,60480.0,60477.0,0.082688]
[1727966085682,0.03196023,60479.0,60477.0,0.082688]
[1727966085882,0.03196023,60478.0,60477.0,0.082688]
[1727966086185,0.37602833,60483.0,60481.0,0.082682]
[1727966086377,0.03196142,60482.0,60481.0,0.082683]
[1727966086575,0.03196096,60482.0,60481.0,0.522683]
[1727966086777,0.03196096,60482.0,60481.0,1.618683]
[1727966087286,0.3608,60490.0,60489.0,0.082672]
[1727966087483,0.39276003,60490.0,60489.0,0.082672]
[1727966087880,0.39276003,60490.0,60481.0,0.441]
[1727966087881,0.082677,60485.0,60481.0,0.441]
[1727966088085,0.39276003,60490.0,60481.0,0.441]
[1727966088086,0.30316829,60484.0,60481.0,0.001]
[1727966088284,0.16375437,60482.0,60481.0,0.083683]
[1727966088484,0.12326037,60482.0,60481.0,0.083683]
[1727966088785,0.12326037,60482.0,60478.0,0.3608]
[1727966088786,0.082684,60480.0,60478.0,0.3608]
[1727966088986,0.21454874,60479.0,60478.0,0.443486]
[1727966089182,0.25502346,60479.0,60478.0,0.3608]
[1727966089483,0.08274424,60479.0,60476.0,0.00248008]
[1727966089782,0.082676,60486.0,60476.0,0.00248008]
[1727966089783,0.08276322,60478.0,60477.0,0.522688]
[1727966089977,0.12328895,60478.0,60477.0,0.522688]
[1727966090282,0.07249269,60478.0,60477.0,0.44]
[1727966090482,0.04052573,60478.0,60477.0,0.522688]
[1727966090688,0.082684,60480.0,60479.0,0.082685]
[1727966090896,0.29541509,60489.0,60477.0,0.44]
[1727966090897,0.12330219,60481.0,60477.0,0.44]
[1727966091186,0.28670836,60489.0,60477.0,0.44]
[1727966091187,0.12330219,60480.0,60479.0,0.082685]
[1727966091380,0.16371915,60480.0,60479.0,0.522685]
[1727966091576,0.25504974,60480.0,60479.0,1.979525]
[1727966091873,0.14701836,60480.0,60479.0,1.979525]
[1727966092077,0.13375631,60483.0,60482.0,0.082681]
[1727966092275,6.6e-07,60483.0,60482.0,0.082681]
[1727966092478,6.6e-07,60483.0,60482.0,1.539481]
[1727966092694,0.0938,60505.0,60504.0,0.082651]
[1727966092880,0.0938,60505.0,60504.0,0.05817885]
[1727966093182,0.0938,60505.0,60496.0,0.44]
[1727966093183,0.082652,60504.0,60496.0,0.44]
[1727966093385,0.082652,60504.0,60501.0,0.082655]
[1727966093587,0.5338,60505.0,60487.0,0.3232]
[1727966093884,0.14199295,60504.0,60489.0,0.44]
[1727966094074,0.08266,60498.0,60489.0,0.44]
[1727966094283,0.08266,60498.0,60494.0,0.082664]
[1727966094586,0.08266,60498.0,60496.0,0.082662]
[1727966094587,0.21356728,60498.0,60496.0,0.082662]
[1727966094784,0.21356728,60498.0,60489.0,0.44]
[1727966094785,0.08266,60498.0,60489.0,0.44]
[1727966095085,0.001,60504.0,60492.0,0.082666]
[1727966095086,0.082664,60495.0,60492.0,0.082666]
[1727966095282,0.082666,60493.0,60489.0,0.082671]
[1727966095485,0.082658,60499.0,60489.0,0.082671]
[1727966095679,0.08267,60490.0,60489.0,0.082671]
[1727966095988,0.08267,60490.0,60487.0,0.083674]
[1727966096284,0.082673,60488.0,60487.0,0.001]
[1727966096485,0.08366,60498.0,60489.0,0.001]
[1727966096486,0.08267,60490.0,60489.0,0.001]
[1727966096889,0.57542141,60490.0,60489.0,0.001]
[1727966097188,0.082688,60478.0,60476.0,0.08516908]
[1727966097375,0.082688,60478.0,60477.0,0.082688]
[1727966097579,0.13103002,60483.0,60478.0,0.082685]
[1727966097779,0.082688,60477.0,60476.0,0.00248008]
[1727966099178,0.082688,60477.0,60462.0,0.44]
[1727966099179,0.7216,60477.0,60462.0,0.44]
[1727966099482,0.01468238,60477.0,60462.0,0.44]
[1727966099681,0.01468238,60477.0,60457.0,0.01711882]
[1727966099682,0.082702,60467.0,60457.0,0.01711882]
[1727966099908,0.082699,60469.0,60466.0,0.082703]
[1727966100078,0.04053232,60468.0,60466.0,0.522703]
[1727966100393,0.001,60477.0,60466.0,0.93612]
[1727966100394,0.13122101,60475.0,60466.0,0.93612]
[1727966100581,0.04052611,60474.0,60465.0,0.082704]
[1727966100785,0.003,60467.0,60462.0,0.001]
[1727966101094,0.082707,60463.0,60462.0,0.001]
[1727966101393,0.12323924,60463.0,60462.0,0.001]
[1727966101695,0.082707,60464.0,60462.0,0.001]
[1727966101897,0.48404078,60463.0,60457.0,0.00248105]
[1727966102190,0.082714,60458.0,60457.0,0.00248105]
[1727966102493,0.13122101,60465.0,60456.0,0.44]
[1727966102677,0.03196956,60464.0,60463.0,0.082707]
[1727966103495,0.0405297,60464.0,60463.0,0.082707]
[1727966103699,0.0405297,60464.0,60463.0,0.443507]
[1727966103993,0.0425297,60464.0,60463.0,0.444507]
[1727966104195,0.002,60464.0,60463.0,0.444507]
[1727966104498,0.18044122,60481.0,60463.0,0.444507]
[1727966104499,0.14778572,60477.0,60476.0,0.082689]
[1727966104701,0.17973771,60477.0,60476.0,0.522689]
[1727966104890,0.17973771,60477.0,60476.0,1.618769]
[1727966105193,0.13122101,60487.0,60476.0,1.618769]
[1727966105398,0.14778572,60489.0,60488.0,0.082673]
[1727966105987,0.14778572,60489.0,60486.0,0.44]
[1727966105988,0.03194467,60489.0,60486.0,0.44]
[1727966106192,0.13122101,60497.0,60494.0,0.082665]
[1727966106393,0.13122101,60497.0,60496.0,0.082662]
[1727966106787,0.13122101,60497.0,60496.0,0.578542]
[1727966106989,0.03194115,60497.0,60496.0,0.578542]
[1727966107499,0.27930921,60502.0,60496.0,0.578542]
[1727966107500,0.14778572,60502.0,60501.0,0.082655]
[1727966107687,0.16409562,60509.0,60501.0,1.379295]
[1727966107892,0.13146688,60519.0,60517.0,0.082633]
[1727966108195,0.0724128,60518.0,60517.0,0.082633]
[1727966108385,0.12316821,60520.0,60517.0,0.44]
[1727966108589,0.07241952,60519.0,60518.0,0.082632]
[1727966108788,0.27096591,60520.0,60519.0,0.082631]
[1727966108988,0.12318454,60520.0,60516.0,0.082635]
[1727966109200,0.082637,60515.0,60511.0,0.08264]
[1727966109387,0.082637,60515.0,60507.0,0.44]
[1727966109388,0.13137087,60513.0,60504.0,0.01710851]
[1727966109589,0.14778572,60508.0,60504.0,0.00247912]
[1727966109788,0.08265,60505.0,60504.0,0.00247912]
[1727966110195,0.3608,60509.0,60508.0,0.082646]
[1727966110397,0.01508484,60513.0,60507.0,0.44]
[1727966110601,0.082638,60514.0,60504.0,0.36427912]
[1727966110902,0.3608,60517.0,60508.0,0.44]
[1727966111300,0.375773,60517.0,60508.0,0.001]
[1727966111601,0.082644,60509.0,60508.0,0.001]
[1727966111906,0.082646,60508.0,60504.0,0.08713012]
[1727966112104,0.08265,60505.0,60504.0,0.00447912]
[1727966112701,0.08265,60505.0,60504.0,0.00347912]
[1727966112702,0.44345,60505.0,60504.0,0.00347912]
[1727966112900,1.45664,60505.0,60487.0,0.44]
[1727966113209,0.082672,60489.0,60482.0,0.44]
[1727966113390,0.3608,60493.0,60487.0,0.44]
[1727966113591,0.082657,60500.0,60499.0,0.082658]
[1727966113796,0.082661,60497.0,60492.0,0.44]
[1727966114001,0.0938,60504.0,60497.0,0.082659]
[1727966114208,0.0938,60504.0,60496.0,0.082662]
[1727966114501,0.082651,60504.0,60503.0,0.522651]
[1727966114689,0.01591649,60505.0,60504.0,0.082651]
[1727966114690,0.001,60505.0,60504.0,0.082651]
[1727966115202,0.3608,60513.0,60512.0,0.08264]
[1727966115386,0.082621,60526.0,60513.0,0.082638]
[1727966115587,0.082621,60526.0,60517.0,0.082632]
[1727966115794,0.082628,60521.0,60517.0,0.082632]
[1727966115989,0.082621,60526.0,60517.0,0.082632]
[1727966116200,0.082633,60518.0,60514.0,0.082637]
[1727966116396,0.082633,60518.0,60516.0,0.082634]
[1727966116796,0.082633,60518.0,60517.0,0.083633]
[1727966116999,0.082633,60518.0,60517.0,0.001]
[1727966118009,0.001,60521.0,60517.0,0.001]
[1727966118204,0.002,60518.0,60517.0,0.084633]
[1727966118405,0.003,60518.0,60517.0,0.083633]
[1727966118702,0.003,60518.0,60517.0,0.523633]
[1727966119102,0.01512715,60524.0,60517.0,0.44]
[1727966119405,0.003,60521.0,60520.0,0.082629]
[1727966119605,0.003,60521.0,60517.0,0.002]
[1727966119799,0.082632,60518.0,60517.0,0.084633]
[1727966120001,0.001,60518.0,60517.0,0.084633]
[1727966120707,0.002,60518.0,60517.0,0.084633]
[1727966122103,0.002,60518.0,60507.0,0.3608]
[1727966122295,0.082647,60507.0,60505.0,0.082649]
[1727966122501,0.3608,60511.0,60497.0,0.44]
[1727966122701,0.3608,60511.0,60494.0,0.3608]
[1727966122702,0.3608,60511.0,60510.0,0.082643]
[1727966123204,0.01708333,60518.0,60511.0,0.082642]
[1727966123400,0.002,60518.0,60517.0,0.082633]
[1727966123603,0.001,60518.0,60517.0,0.082633]
[1727966123803,0.3298,60522.0,60513.0,0.44]
[1727966124005,0.082626,60523.0,60513.0,0.44]
[1727966124311,0.01517255,60523.0,60519.0,0.08263]
[1727966124613,0.3608,60527.0,60519.0,0.08263]
[1727966124614,0.082629,60520.0,60519.0,0.08263]
[1727966125610,0.082629,60520.0,60519.0,0.08363]
[1727966126011,0.082629,60520.0,60519.0,0.001]
[1727966126201,0.085629,60520.0,60519.0,0.001]
[1727966126595,0.085629,60520.0,60507.0,0.3608]
[1727966126596,0.082643,60511.0,60510.0,0.082642]
[1727966127309,0.085629,60520.0,60509.0,0.44]
[1727966127310,0.02016921,60520.0,60509.0,0.44]
[1727966127513,0.082631,60519.0,60518.0,0.082631]
[1727966127812,0.443431,60519.0,60518.0,0.082631]
[1727966128011,0.084642,60511.0,60510.0,0.001]
[1727966128401,0.082642,60511.0,60510.0,0.082643]
[1727966128601,0.174832,60518.0,60512.0,0.08264]
[1727966128602,0.082634,60517.0,60512.0,0.08264]
[1727966128811,0.3628,60519.0,60512.0,0.08264]
[1727966128812,0.08264,60513.0,60512.0,0.08264]
[1727966129013,0.3628,60519.0,60512.0,0.44]
[1727966129216,0.082635,60516.0,60515.0,0.082635]
[1727966129814,0.003,60517.0,60512.0,0.441]
[1727966130108,1e-06,60519.0,60518.0,0.082632]
[1727966130413,0.01471711,60536.0,60535.0,0.082609]
[1727966130719,0.13117996,60544.0,60543.0,0.082598]
[1727966131509,0.69144,60557.0,60543.0,1.45632]
[1727966131510,0.00084,60557.0,60543.0,1.45632]
[1727966131730,0.03190751,60556.0,60555.0,0.44]
[1727966132216,0.03190742,60556.0,60555.0,0.522581]
[1727966132512,0.36327823,60562.0,60555.0,0.522581]
[1727966132714,0.03190484,60561.0,60543.0,0.3618]
[1727966133014,0.082581,60556.0,60550.0,0.44]
[1727966133312,0.082581,60556.0,60555.0,0.001]
[1727966133815,0.082577,60559.0,60555.0,0.001]
[1727966134421,0.08258,60556.0,60555.0,0.001]
[1727966134611,0.36327823,60562.0,60550.0,0.001]
[1727966134612,0.44,60561.0,60550.0,0.001]
[1727966134914,0.44,60561.0,60543.0,0.3608]
[1727966135109,0.082596,60544.0,60543.0,0.3608]
[1727966135305,0.3298,60559.0,60543.0,0.3608]
[1727966135613,0.082603,60540.0,60530.0,0.3608]
[1727966135915,0.082604,60539.0,60533.0,0.082611]
[1727966136113,0.082604,60539.0,60530.0,0.3608]
[1727966136114,0.082604,60539.0,60536.0,0.082607]
[1727966136616,0.082604,60539.0,60534.0,0.44]
[1727966136617,0.3608,60544.0,60534.0,0.44]
[1727966136820,0.3608,60544.0,60530.0,0.3608]
[1727966137020,0.082616,60531.0,60526.0,0.08509822]
[1727966137205,0.082616,60531.0,60530.0,0.001]
[1727966137616,0.082608,60536.0,60530.0,0.001]
[1727966137810,0.082608,60536.0,60534.0,0.44]
[1727966138021,0.082608,60536.0,60534.0,0.52261]
[1727966138609,0.3608,60537.0,60536.0,0.082607]
[1727966139110,0.01497006,60543.0,60536.0,0.082607]
[1727966139311,0.082603,60539.0,60536.0,0.082607]
[1727966139512,0.082597,60544.0,60541.0,0.082599]
[1727966140324,0.37590679,60548.0,60539.0,0.44]
[1727966140517,0.082586,60552.0,60549.0,0.08259]
[1727966140823,0.08505023,60562.0,60556.0,0.08258]
[1727966140824,0.082573,60561.0,60556.0,0.08258]
[1727966141120,0.082573,60561.0,60556.0,0.082579]
[1727966141424,0.00247823,60562.0,60561.0,0.082573]
[1727966141723,0.00247823,60562.0,60561.0,0.522573]
[1727966142422,0.3608,60576.0,60561.0,1.53536]
[1727966142622,0.08256,60571.0,60566.0,0.44]
[1727966142822,0.082562,60570.0,60566.0,0.522566]
[1727966143124,0.082562,60570.0,60566.0,0.082566]
[1727966143319,0.81543381,60581.0,60561.0,0.44]
[1727966143518,0.001,60562.0,60561.0,0.083573]
[1727966143723,0.001,60562.0,60561.0,0.084573]
[1727966143916,0.002,60562.0,60561.0,0.084573]
[1727966144221,0.001,60562.0,60561.0,0.083573]
[1727966144414,0.083572,60562.0,60561.0,0.001]
[1727966144719,0.001,60562.0,60561.0,0.523573]
[1727966145509,0.082571,60563.0,60561.0,0.082573]
[1727966145714,0.082572,60562.0,60561.0,0.001]
[1727966146111,0.443372,60562.0,60561.0,0.001]
[1727966146327,0.443372,60562.0,60544.0,0.3608]
[1727966146328,0.082591,60548.0,60544.0,0.3608]
[1727966147024,0.082591,60548.0,60547.0,0.08506935]
[1727966147210,0.082586,60552.0,60549.0,0.082589]
[1727966147416,0.082588,60552.0,60551.0,0.082587]
[1727966147615,0.0942,60561.0,60547.0,0.44247735]
[1727966147616,0.01514861,60557.0,60547.0,0.44247735]
[1727966147819,0.082583,60554.0,60553.0,0.082584]
[1727966148321,0.01460626,60561.0,60547.0,0.44347735]
[1727966148521,0.03190697,60560.0,60559.0,0.082576]
[1727966148711,0.082573,60562.0,60560.0,0.082574]
[1727966149117,0.082573,60562.0,60553.0,0.001]
[1727966149310,0.082583,60554.0,60553.0,0.001]
[1727966149516,0.8008,60570.0,60553.0,0.001]
[1727966149725,0.082572,60563.0,60553.0,0.001]
[1727966149911,0.082572,60563.0,60553.0,0.083584]
[1727966150115,0.082581,60556.0,60554.0,0.082583]
[1727966150318,0.082581,60556.0,60555.0,0.082581]
[1727966150713,0.001,60562.0,60553.0,0.001]
[1727966150913,0.001,60563.0,60557.0,0.082579]
[1727966151115,0.014,60561.0,60557.0,0.082579]
[1727966151319,0.082577,60558.0,60557.0,0.082579]
[1727966152325,0.096574,60561.0,60560.0,0.082575]
[1727966152934,0.082577,60558.0,60557.0,0.001]
[1727966153828,0.014,60558.0,60557.0,0.001]
[1727966154124,0.096577,60558.0,60557.0,0.083579]
[1727966154525,0.11162301,60558.0,60557.0,0.001]
[1727966154729,0.11162301,60558.0,60557.0,0.083579]
[1727966154928,0.096577,60558.0,60557.0,0.083579]
[1727966155124,0.096577,60558.0,60557.0,0.001]
[1727966155333,0.096577,60558.0,60557.0,0.083579]
[1727966155828,0.11117779,60558.0,60557.0,0.001]
[1727966156021,0.40217779,60558.0,60557.0,0.002]
[1727966156221,0.40217779,60558.0,60544.0,0.3608]
[1727966156222,0.082591,60548.0,60544.0,0.3608]
[1727966156424,0.082591,60548.0,60545.0,0.082594]
[1727966156627,0.082591,60548.0,60544.0,0.3608]
[1727966157032,0.082591,60548.0,60544.0,0.443396]
[1727966157326,0.082591,60548.0,60540.0,0.082601]
[1727966157529,0.082591,60548.0,60535.0,0.29]
[1727966157530,0.082607,60539.0,60538.0,0.082604]
[1727966157722,0.082592,60547.0,60529.0,0.29]
[1727966158018,0.082609,60535.0,60534.0,0.082609]
[1727966158430,0.31899902,60548.0,60537.0,0.082605]
[1727966158431,0.082594,60546.0,60537.0,0.082605]
[1727966158629,0.003,60539.0,60529.0,0.29]
[1727966158834,0.085603,60539.0,60538.0,0.082605]
[1727966159032,0.08261,60534.0,60533.0,0.08261]
[1727966159233,0.08261,60534.0,60529.0,0.082616]
[1727966159535,0.082614,60531.0,60530.0,0.082614]
[1727966159938,0.082607,60536.0,60535.0,0.082607]
[1727966160527,0.082602,60540.0,60539.0,0.082602]
[1727966160830,0.11451876,60540.0,60539.0,0.082602]
[1727966161029,0.082602,60540.0,60539.0,0.082602]
[1727966161231,0.082611,60534.0,60530.0,0.001]
[1727966161628,0.014,60536.0,60535.0,0.082609]
[1727966162626,0.028,60536.0,60535.0,0.082609]
[1727966163141,0.082613,60532.0,60531.0,0.082613]
[1727966163346,0.08262,60527.0,60526.0,0.00247822]
[1727966163635,0.08262,60527.0,60510.0,0.443442]
[1727966163636,0.72319536,60527.0,60510.0,0.3608]
[1727966163942,0.082632,60519.0,60510.0,0.3608]
[1727966164143,0.29,60517.0,60510.0,0.3608]
[1727966164344,0.08264,60512.0,60510.0,0.082642]
[1727966164635,0.08264,60512.0,60504.0,0.00247886]
[1727966164636,0.082644,60510.0,60505.0,0.08265]
[1727966164829,0.082644,60510.0,60509.0,0.082644]
[1727966165229,0.01468405,60512.0,60504.0,0.00247886]
[1727966165435,0.37265,60505.0,60504.0,0.00247886]
[1727966165628,0.37265,60505.0,60498.0,0.082659]
[1727966165629,0.082651,60504.0,60498.0,0.082659]
[1727966165946,0.014,60512.0,60499.0,0.082657]
[1727966166140,0.03193456,60511.0,60498.0,0.8008]
[1727966166434,0.02863102,60512.0,60498.0,0.8008]
[1727966166629,0.3608,60508.0,60501.0,0.082654]
[1727966166941,0.44,60504.0,60493.0,0.082665]
[1727966167134,0.3608,60508.0,60489.0,0.3608]
[1727966167135,0.44,60498.0,60489.0,0.3608]
[1727966167324,0.44,60498.0,60491.0,0.082668]
[1727966167325,0.082661,60497.0,60491.0,0.082668]
[1727966167529,0.082661,60497.0,60489.0,0.3608]
[1727966167838,0.082668,60492.0,60489.0,0.3608]
[1727966168138,0.006,60504.0,60493.0,0.001]
[1727966168435,0.014,60498.0,60493.0,0.001]
[1727966168630,0.3608,60494.0,60493.0,0.001]
[1727966169334,1.45672,60494.0,60480.0,0.0024801]
[1727966169529,0.082675,60487.0,60480.0,0.0024801]
[1727966169729,0.014,60497.0,60486.0,0.44]
[1727966169934,0.014,60492.0,60481.0,0.44]
[1727966170133,0.014,60492.0,60491.0,0.082669]
[1727966170531,0.005,60494.0,60491.0,0.082669]
[1727966170933,0.005,60494.0,60480.0,0.0024801]
[1727966171227,0.44,60489.0,60484.0,0.082678]
[1727966171426,0.028,60492.0,60485.0,0.082676]
[1727966171636,0.028,60492.0,60480.0,0.0024801]
[1727966171838,0.014,60492.0,60491.0,0.082669]
[1727966172035,0.014,60492.0,60488.0,0.082673]
[1727966172338,0.014,60492.0,60480.0,0.0024801]
[1727966172339,0.014,60492.0,60489.0,0.082672]
[1727966172732,0.014,60494.0,60492.0,0.082667]
[1727966172934,0.019,60494.0,60492.0,0.082667]
[1727966173237,0.005,60494.0,60493.0,0.082666]
[1727966173939,0.019,60494.0,60493.0,0.082666]
[1727966174132,0.014,60494.0,60493.0,0.082666]
[1727966174332,0.014,60494.0,60493.0,1.178586]
[1727966174634,0.3608,60502.0,60501.0,0.082655]
[1727966175038,0.00248038,60506.0,60505.0,0.08265]
[1727966176541,0.01648038,60506.0,60505.0,0.08265]
[1727966176836,0.03048038,60506.0,60505.0,0.08365]
[1727966178037,0.03048038,60506.0,60505.0,0.08465]
[1727966179442,0.03048038,60506.0,60505.0,0.08365]
[1727966180431,0.3608,60521.0,60520.0,0.082629]
[1727966180636,0.01522106,60521.0,60520.0,0.082629]
[1727966180836,0.082621,60526.0,60523.0,0.082625]
[1727966181032,0.535318,60528.0,60523.0,0.082625]
[1727966181247,0.082621,60526.0,60523.0,0.082625]
[1727966181549,0.08263,60520.0,60517.0,0.082632]
[1727966181851,0.44,60521.0,60511.0,0.44344]
[1727966182036,0.44,60515.0,60507.0,0.00247884]
[1727966182236,0.522646,60508.0,60507.0,0.00247884]
[1727966182434,0.082646,60508.0,60507.0,0.08512584]
[1727966183247,0.012,60508.0,60507.0,0.001]
[1727966183436,0.082656,60501.0,60491.0,0.00247964]
[1727966183741,0.082656,60501.0,60500.0,0.082657]
[1727966184340,0.44,60503.0,60491.0,0.00247964]
[1727966184735,0.082659,60499.0,60498.0,0.082659]
[1727966185143,0.082659,60499.0,60491.0,0.00247964]
[1727966185144,0.082667,60492.0,60491.0,0.00247964]
[1727966185344,0.522667,60492.0,60491.0,0.00247964]
[1727966185554,0.082673,60488.0,60487.0,0.082674]
[1727966185841,0.082677,60486.0,60475.0,0.3608]
[1727966186047,0.082677,60486.0,60485.0,0.082677]
[1727966186347,0.082673,60488.0,60487.0,0.082674]
[1727966186848,0.085673,60488.0,60487.0,0.083674]
[1727966187047,0.085673,60488.0,60487.0,0.001]
[1727966187440,1.45976,60488.0,60475.0,0.007]
[1727966187639,0.082699,60469.0,60468.0,0.0024806]
[1727966187941,0.372699,60469.0,60468.0,0.0024806]
[1727966188247,0.00248137,60482.0,60468.0,0.0024806]
[1727966188652,0.082691,60475.0,60472.0,0.082694]
[1727966188850,0.01748893,60482.0,60470.0,0.29]
[1727966189350,0.082683,60481.0,60478.0,0.082686]
[1727966189553,0.01748893,60482.0,60470.0,0.29]
[1727966189739,0.00248137,60482.0,60481.0,0.082683]
[1727966189939,0.005,60482.0,60481.0,0.082683]
[1727966190635,0.005,60482.0,60479.0,0.01486921]
[1727966190636,0.014,60481.0,60479.0,0.01486921]
[1727966190945,0.014,60481.0,60480.0,0.082684]
[1727966191139,0.096683,60481.0,60480.0,0.082684]
[1727966191341,0.082692,60474.0,60473.0,0.082693]
[1727966191940,0.3608,60474.0,60465.0,0.01489896]
[1727966192142,0.372699,60469.0,60466.0,0.082703]
[1727966192340,0.372699,60469.0,60462.0,0.082707]
[1727966192542,0.372699,60469.0,60457.0,0.3608]
[1727966192742,0.733499,60469.0,60450.0,0.3608]
[1727966192959,1.74692,60469.0,60444.0,0.04927126]
[1727966193149,0.29,60451.0,60441.0,0.3608]
[1727966193453,0.0928,60468.0,60441.0,0.3608]
[1727966193454,0.082736,60443.0,60441.0,0.3608]
[1727966193660,0.6508,60446.0,60436.0,0.0024819]
[1727966193950,0.082733,60444.0,60439.0,0.08274]
[1727966194343,0.65164,60446.0,60434.0,0.3608]
[1727966194344,0.082737,60442.0,60436.0,0.082744]
[1727966194659,0.08273,60447.0,60444.0,0.082732]
[1727966194843,0.3608,60454.0,60450.0,0.082724]
[1727966195044,0.3608,60454.0,60446.0,0.29]
[1727966195045,0.37542656,60454.0,60451.0,0.082723]
[1727966195352,0.001,60451.0,60437.0,0.04927126]
[1727966195664,0.001,60451.0,60434.0,0.42644276]
[1727966195665,0.082741,60438.0,60436.0,0.083744]
[1727966195849,0.44,60438.0,60436.0,0.001]
[1727966196049,0.44,60443.0,60436.0,0.001]
[1727966196246,0.082737,60442.0,60440.0,0.082738]
[1727966196547,0.0959,60450.0,60434.0,0.3608]
[1727966196548,0.089724,60451.0,60447.0,0.082728]
[1727966196745,0.089724,60451.0,60436.0,0.082744]
[1727966196965,0.082726,60450.0,60448.0,0.082727]
[1727966197263,0.007,60451.0,60450.0,0.082725]
[1727966197478,0.089724,60451.0,60450.0,0.082725]
[1727966197645,0.082733,60444.0,60440.0,0.082738]
[1727966197948,0.08273,60447.0,60434.0,0.37556492]
[1727966198155,0.008,60443.0,60434.0,0.37556492]
[1727966198451,0.08273,60447.0,60444.0,0.082733]
[1727966198651,0.44,60453.0,60444.0,0.082733]
[1727966198859,0.082732,60445.0,60444.0,0.082733]
[1727966199060,0.082735,60443.0,60440.0,0.082738]
[1727966199358,0.008,60443.0,60442.0,0.082736]
[1727966199548,0.090734,60443.0,60442.0,0.082736]
[1727966199745,0.008,60443.0,60442.0,0.082736]
[1727966199958,0.014,60445.0,60444.0,0.082732]
[1727966200351,0.082734,60444.0,60434.0,0.37556492]
[1727966200756,0.014,60443.0,60442.0,0.082736]
[1727966200957,0.014,60443.0,60438.0,0.082741]
[1727966201160,0.082739,60440.0,60434.0,0.3608]
[1727966201364,0.014,60443.0,60434.0,0.3608]
[1727966201655,0.096735,60443.0,60434.0,0.3608]
[1727966201862,0.096735,60443.0,60441.0,0.082737]
[1727966202160,0.109734,60443.0,60442.0,0.001]
[1727966202552,0.109734,60443.0,60434.0,0.3608]
[1727966202553,0.014,60443.0,60440.0,0.082738]
[1727966202754,0.014,60443.0,60441.0,0.082737]
[1727966202755,0.082737,60442.0,60441.0,0.082737]
[1727966202945,0.082737,60442.0,60434.0,0.3608]
[1727966202946,0.004,60443.0,60442.0,0.082736]
[1727966203148,0.082741,60439.0,60438.0,0.082741]
[1727966203669,0.082743,60437.0,60434.0,0.443546]
[1727966203956,0.014,60443.0,60429.0,0.00248219]
[1727966203957,0.44,60438.0,60429.0,0.00248219]
[1727966204157,0.522752,60430.0,60420.0,0.01480266]
[1727966204465,0.082762,60423.0,60415.0,0.3608]
[1727966204667,0.082763,60422.0,60421.0,0.082763]
[1727966204977,0.44,60427.0,60415.0,0.3608]
[1727966205155,0.082762,60423.0,60421.0,0.082764]
[1727966205459,0.0974723,60427.0,60426.0,0.082758]
[1727966205651,0.0147163,60427.0,60415.0,0.3608]
[1727966205853,0.3608,60433.0,60427.0,0.082756]
[1727966206048,0.37537633,60433.0,60416.0,0.082771]
[1727966206254,0.082753,60430.0,60427.0,0.082755]
[1727966206558,0.082755,60428.0,60427.0,0.082755]
[1727966206759,0.082752,60430.0,60429.0,0.082753]
[1727966206962,0.37537633,60433.0,60417.0,0.082769]
[1727966206963,0.082756,60428.0,60417.0,0.082769]
[1727966207160,0.082771,60417.0,60416.0,0.082771]
[1727966207364,0.3608,60427.0,60415.0,0.002]
[1727966207663,0.082761,60424.0,60421.0,0.082764]
[1727966207861,0.082761,60424.0,60423.0,0.082762]
[1727966208454,0.082754,60430.0,60428.0,0.082755]
[1727966208765,0.3608,60435.0,60419.0,0.3608]